fUST/lending_fUST_20250726
["ID","MTS","AMOUNT","RATE_DAILY","PERIOD"]
[375028848,1753507834141,-460.0,0.00019178,2]
[375028849,1753507834150,-461.34065977,0.00019178,2]
[375028850,1753507834160,-460.0,0.00019178,2]
[375028851,1753507834171,-460.0,0.00019178,2]
[375028852,1753507834181,-433.62213683,0.00019178,2]
[375028853,1753507834190,-266.61718001,0.00019178,2]
[375028854,1753507834200,-460.41649075,0.00019178,2]
[375028855,1753507834209,-460.0,0.00019178,2]
[375028856,1753507834219,-460.0,0.00019178,2]
[375028857,1753507834228,-460.0,0.00019178,2]
[375028858,1753507834238,-460.0,0.00019178,2]
[375028859,1753507834247,-460.0,0.00019178,2]
[375028860,1753507834257,-460.0,0.00019178,2]
[375028861,1753507834267,-460.0,0.00019178,2]
[375028862,1753507834277,-460.0,0.00019178,2]
[375028863,1753507834286,-246.85015323,0.00019178,2]
[375028864,1753507834296,-460.0,0.00019178,2]
[375028865,1753507834306,-460.0,0.00019178,2]
[375028866,1753507834315,-461.24260034,0.00019178,2]
[375028867,1753507834325,-462.12675587,0.00019178,2]
[375028868,1753507834334,-461.34987951,0.00019178,2]
[375028869,1753507834344,-460.0,0.00019178,2]
[375028870,1753507834353,-460.0,0.00019178,2]
[375028871,1753507834364,-460.0,0.00019178,2]
[375028872,1753507834375,-460.0,0.00019178,2]
[375028873,1753507834384,-256.07028802,0.00019178,2]
[375028874,1753507834401,-460.0,0.00019178,2]
[375028875,1753507834411,-460.0,0.00019178,2]
[375028876,1753507834421,-460.0,0.00019178,2]
[375028877,1753507834431,-460.85107072,0.00019178,2]
[375028878,1753507834442,-460.0,0.00019178,2]
[375028879,1753507834598,-460.0,0.00019178,2]
[375028880,1753507834607,-460.0,0.00019178,2]
[375028881,1753507834617,-460.0,0.00019178,2]
[375028882,1753507834627,-460.0,0.00019178,2]
[375028883,1753507834636,-460.0,0.00019178,2]
[375028884,1753507834645,-152.841649,0.00019178,2]
[375028885,1753507834655,-468.61885676,0.00019178,2]
[375028886,1753507834664,-460.0,0.00019178,2]
[375028887,1753507834673,-462.98717666,0.00019178,2]
[375028888,1753507834683,-460.0,0.00019178,2]
[375028889,1753507834693,-460.0,0.00019178,2]
[375028890,1753507834703,-460.0,0.00019178,2]
[375028891,1753507834712,-460.0,0.00019178,2]
[375028892,1753507834721,-461.38945625,0.00019178,2]
[375028893,1753507834731,-460.0,0.00019178,2]
[375028894,1753507834741,-460.0,0.00019178,2]
[375028895,1753507834750,-460.0,0.00019178,2]
[375028896,1753507834760,-460.0,0.00019178,2]
[375028897,1753507834769,-460.0,0.00019178,2]
[375028898,1753507834780,-460.0,0.00019178,2]
[375028899,1753507834790,-460.0,0.00019178,2]
[375028900,1753507834799,-460.0,0.00019178,2]
[375028901,1753507834808,-460.0,0.00019178,2]
[375028902,1753507834818,-460.0,0.00019178,2]
[375028903,1753507834827,-463.41811104,0.00019178,2]
[375028904,1753507834836,-460.0,0.00019178,2]
[375028905,1753507834846,-460.0,0.00019178,2]
[375028906,1753507834855,-460.0,0.00019178,2]
[375028907,1753507834865,-460.0,0.00019178,2]
[375028908,1753507834874,-465.04621665,0.00019178,2]
[375028909,1753507834884,-460.0,0.00019178,2]
[375028910,1753507834894,-460.0,0.00019178,2]
[375028911,1753507834903,-460.0,0.00019178,2]
[375028912,1753507834913,-699.31,0.00019178,2]
[375028913,1753507834923,-460.0,0.00019178,2]
[375028914,1753507834932,-460.0,0.00019178,2]
[375028915,1753507834942,-460.0,0.00019178,2]
[375028916,1753507834952,-460.0,0.00019178,2]
[375028917,1753507834962,-460.0,0.00019178,2]
[375028918,1753507834973,-460.0,0.00019178,2]
[375028919,1753507834984,-407.49407561,0.00019178,2]
[375028920,1753507834994,-183.69955394,0.00019178,2]
[375028921,1753507835003,-460.85877015,0.00019178,2]
[375028922,1753507835013,-460.0,0.00019178,2]
[375028923,1753507835024,-460.0,0.00019178,2]
[375028924,1753507835034,-460.0,0.00019178,2]
[375028925,1753507835043,-460.0,0.00019178,2]
[375028926,1753507835053,-460.0,0.00019178,2]
[375028927,1753507835062,-461.11620815,0.00019178,2]
[375028928,1753507835071,-752.08,0.00019178,2]
[375028929,1753507835081,-460.0,0.00019178,2]
[375028930,1753507835090,-460.0,0.00019178,2]
[375028931,1753507835099,-460.0,0.00019178,2]
[375028932,1753507835108,-448.96349543,0.00019178,2]
[375028933,1753507835118,-460.0,0.00019178,2]
[375028934,1753507835127,-188.89501156,0.00019178,2]
[375028935,1753507835136,-460.94814235,0.00019178,2]
[375028936,1753507835146,-460.0,0.00019178,2]
[375028937,1753507835155,-391.75247045,0.00019178,2]
[375028938,1753507835164,-460.0,0.00019178,2]
[375028939,1753507835173,-460.0,0.00019178,2]
[375028940,1753507835183,-460.98492194,0.00019178,2]
[375028941,1753507835193,-460.0,0.00019178,2]
[375028942,1753507835202,-460.0,0.00019178,2]
[375028943,1753507835212,-461.87236474,0.00019178,2]
[375028944,1753507835222,-464.2752139,0.00019178,2]
[375028945,1753507835231,-461.17910427,0.00019178,2]
[375028946,1753507835240,-460.0,0.00019178,2]
[375028947,1753507835250,-460.0,0.00019178,2]
[375028948,1753507835259,-460.0,0.00019178,2]
[375028949,1753507835268,-460.0,0.00019178,2]
[375028950,1753507835277,-460.0,0.00019178,2]
[375028951,1753507835287,-466.20246161,0.00019178,2]
[375028952,1753507835296,-623.66,0.00019178,2]
[375028953,1753507835305,-460.0,0.00019178,2]
[375028954,1753507835314,-460.0,0.00019178,2]
[375028955,1753507835323,-460.0,0.00019178,2]
[375028956,1753507835334,-460.0,0.00019178,2]
[375028957,1753507835343,-460.0,0.00019178,2]
[375028958,1753507835352,-460.0,0.00019178,2]
[375028959,1753507835362,-778.16,0.00019178,2]
[375028960,1753507835371,-460.0,0.00019178,2]
[375028961,1753507835380,-461.14123731,0.00019178,2]
[375028962,1753507835389,-500.0,0.00019178,2]
[375028963,1753507835399,-500.0,0.00019178,2]
[375028964,1753507835410,-500.0,0.00019178,2]
[375028965,1753507835421,-500.0,0.00019178,2]
[375028966,1753507835430,-460.0,0.00019178,2]
[375028967,1753507835439,-500.0,0.00019178,2]
[375028968,1753507835448,-500.0,0.00019178,2]
[375028969,1753507835458,-500.0,0.00019178,2]
[375028970,1753507835467,-500.0,0.00019178,2]
[375028971,1753507835477,-500.0,0.00019178,2]
[375028972,1753507835495,-500.0,0.00019178,2]
[375028973,1753507835504,-500.0,0.00019178,2]
[375028974,1753507835514,-500.0,0.00019178,2]
[375028975,1753507835523,-500.0,0.00019178,2]
[375028976,1753507835533,-500.0,0.00019178,2]
[375028977,1753507835542,-500.0,0.00019178,2]
[375028978,1753507835552,-500.0,0.00019178,2]
[375028979,1753507835561,-500.0,0.00019178,2]
[375028980,1753507835571,-500.0,0.00019178,2]
[375028981,1753507835580,-404.58084843,0.00019178,2]
[375028982,1753507835590,-460.0,0.00019178,2]
[375028983,1753507835599,-459.01110601,0.00019178,2]
[375028984,1753507835608,-460.0,0.00019178,2]
[375028985,1753507835618,-460.0,0.00019178,2]
[375028986,1753507835627,-460.0,0.00019178,2]
[375028987,1753507835636,-460.0,0.00019178,2]
[375028988,1753507835645,-460.0,0.00019178,2]
[375028989,1753507835655,-460.0,0.00019178,2]
[375028990,1753507835664,-460.0,0.00019178,2]
[375028991,1753507835675,-460.0,0.00019178,2]
[375028992,1753507835684,-460.0,0.00019178,2]
[375028993,1753507835695,-460.90402685,0.00019178,2]
[375028994,1753507835705,-460.0,0.00019178,2]
[375028995,1753507835715,-460.0,0.00019178,2]
[375028996,1753507835724,-460.0,0.00019178,2]
[375028997,1753507835733,-460.0,0.00019178,2]
[375028998,1753507835743,-460.0,0.00019178,2]
[375028999,1753507835752,-460.0,0.00019178,2]
[375029000,1753507835762,-460.0,0.00019178,2]
[375029001,1753507835771,-460.0,0.00019178,2]
[375029002,1753507835781,-461.95887291,0.00019178,2]
[375029003,1753507835790,-460.0,0.00019178,2]
[375029004,1753507835799,-1077.2,0.00019178,2]
[375029005,1753507835809,-460.0,0.00019178,2]
[375029006,1753507835817,-460.0,0.00019178,2]
[375029007,1753507835827,-460.0,0.00019178,2]
[375029008,1753507835836,-460.0,0.00019178,2]
[375029009,1753507835846,-460.0,0.00019178,2]
[375029010,1753507835857,-460.42578628,0.00019178,2]
[375029011,1753507835868,-460.0,0.00019178,2]
[375029012,1753507835878,-460.0,0.00019178,2]
[375029013,1753507835889,-460.0,0.00019178,2]
[375029014,1753507835898,-460.0,0.00019178,2]
[375029015,1753507835908,-460.0,0.00019178,2]
[375029016,1753507835917,-460.0,0.00019178,2]
[375029017,1753507835926,-460.0,0.00019178,2]
[375029018,1753507835935,-460.0,0.00019178,2]
[375029019,1753507835945,-519.86613146,0.00019178,2]
[375029020,1753507835954,-460.0,0.00019178,2]
[375029021,1753507835964,-460.0,0.00019178,2]
[375029022,1753507835973,-460.0,0.00019178,2]
[375029023,1753507835982,-460.0,0.00019178,2]
[375029024,1753507835992,-460.0,0.00019178,2]
[375029025,1753507836001,-460.0,0.00019178,2]
[375029026,1753507836011,-460.83031915,0.00019178,2]
[375029027,1753507836020,-460.0,0.00019178,2]
[375029028,1753507836030,-460.0,0.00019178,2]
[375029029,1753507836039,-460.0,0.00019178,2]
[375029030,1753507836049,-460.0,0.00019178,2]
[375029031,1753507836058,-460.74751987,0.00019178,2]
[375029032,1753507836068,-460.0,0.00019178,2]
[375029033,1753507836077,-460.0,0.00019178,2]
[375029034,1753507836086,-460.0,0.00019178,2]
[375029035,1753507836096,-460.0,0.00019178,2]
[375029036,1753507836105,-249.99787793,0.00019178,2]
[375029037,1753507836114,-460.0,0.00019178,2]
[375029038,1753507836124,-460.0,0.00019178,2]
[375029039,1753507836133,-460.0,0.00019178,2]
[375029040,1753507836143,-473.17,0.00019178,2]
[375029041,1753507836152,-446.62696623,0.00019178,2]
[375029042,1753507836163,-475.00036378,0.00019178,2]
[375029043,1753507836173,-460.0,0.00019178,2]
[375029044,1753507836182,-460.0,0.00019178,2]
[375029045,1753507836192,-460.0,0.00019178,2]
[375029046,1753507836201,-460.0,0.00019178,2]
[375029047,1753507836210,-460.0,0.00019178,2]
[375029048,1753507836219,-460.0,0.00019178,2]
[375029049,1753507836229,-460.0,0.00019178,2]
[375029050,1753507836238,-460.0,0.00019178,2]
[375029051,1753507836247,-607.82,0.00019178,2]
[375029052,1753507836257,-460.0,0.00019178,2]
[375029053,1753507836266,-460.0,0.00019178,2]
[375029054,1753507836275,-975.93,0.00019178,2]
[375029055,1753507836285,-1120.86,0.00019178,2]
[375029056,1753507836295,-460.0,0.00019178,2]
[375029057,1753507836305,-18.79557105,0.00019178,2]
[375029096,1753507838740,-219.87002699,0.00019007,2]
[375029098,1753507838750,-369.72997301,0.00019007,2]
[375029100,1753507838761,-130.27002699,0.00019007,2]
[375029102,1753507838770,-328.35302022,0.00019007,2]
[375029104,1753507838781,-500.0,0.00019007,2]
[375029106,1753507838790,-500.0,0.00019007,2]
[375029108,1753507838800,-500.0,0.00019007,2]
[375029110,1753507838809,-500.0,0.00019007,2]
[375029112,1753507838819,-500.0,0.00019007,2]
[375029114,1753507838828,-232.10053479,0.00019007,2]
[375029116,1753507838840,-500.0,0.00019007,2]
[375029118,1753507838850,-500.0,0.00019007,2]
[375029120,1753507838859,-500.0,0.00019007,2]
[375029122,1753507838868,-421.06830212,0.00019007,2]
[375029124,1753507838878,-441.20442895,0.00019178,2]
[375029126,1753507838887,-460.0,0.00019178,2]
[375029128,1753507838897,-460.0,0.00019178,2]
[375029130,1753507838913,-460.0,0.00019178,2]
[375029132,1753507838931,-460.0,0.00019178,2]
[375029133,1753507838941,-67.93019902,0.00019178,2]
[375029136,1753507838959,-392.06980098,0.00019178,2]
[375029138,1753507838969,-460.0,0.00019178,2]
[375029140,1753507838978,-460.0,0.00019178,2]
[375029142,1753507838987,-460.0,0.00019178,2]
[375029144,1753507838997,-70.23019902,0.00019178,2]
[375029146,1753507839009,-270.57796467,0.00019178,2]
[375029148,1753507839019,-460.0,0.00019178,2]
[375029150,1753507839028,-460.0,0.00019178,2]
[375029152,1753507839037,-330.61426934,0.00019178,2]
[375029154,1753507839047,-460.0,0.00019178,2]
[375029156,1753507839057,-460.0,0.00019178,2]
[375029158,1753507839067,-460.0,0.00019178,2]
[375029160,1753507839076,-524.02048988,0.00019178,2]
[375029162,1753507839086,-281.61602802,0.00019178,2]
[375029318,1753507840766,-139.83929377,0.00019178,2]
[375029319,1753507840776,-460.0,0.00019178,2]
[375029320,1753507840786,-100.16070623,0.00019178,2]
[375029321,1753507840799,-359.83929377,0.00019178,2]
[375029322,1753507840808,-69.58694935,0.00019178,2]
[375029500,1753507842796,-390.41305065,0.00019178,2]
[375029502,1753507842806,-460.0,0.00019178,2]
[375029504,1753507842815,-461.75239722,0.00019178,2]
[375029506,1753507842825,-460.0,0.00019178,2]
[375029508,1753507842834,-460.0,0.00019178,2]
[375029510,1753507842844,-460.0,0.00019178,2]
[375029512,1753507842853,-460.0,0.00019178,2]
[375029514,1753507842862,-460.0,0.00019178,2]
[375029516,1753507842872,-460.0,0.00019178,2]
[375029519,1753507842882,-278.8312821,0.00019178,2]
[375029521,1753507842891,-500.0,0.00019178,2]
[375029522,1753507842900,-460.0,0.00019178,2]
[375029524,1753507842909,-460.0,0.00019178,2]
[375029526,1753507842919,-464.2998844,0.00019178,2]
[375029528,1753507842928,-363.11074673,0.00019178,2]
[375029532,1753507842950,-96.88925327,0.00019178,2]
[375029534,1753507842959,-253.87595559,0.00019178,2]
[375036465,1753508672134,4174.28746758,0.00017,2]
[375036466,1753508723553,296.677188,0.00013699,2]
[375036470,1753508799081,-247.820989,0.00017282,2]
[375036471,1753508799102,-294.283378,0.00018178,2]
[375036472,1753508799122,-218.44424234,0.00018505,2]
[375036473,1753508799142,-207.46982474,0.00018506,2]
[375036474,1753508799162,-429.24334885,0.000189,2]
[375036475,1753508799182,-3171.25564282,0.00019065,2]
[375036477,1753508973876,1105.0,0.00025999,120]
[375037004,1753509038028,-155.84864431,0.00018493,2]
[375037006,1753509038038,-733.42006913,0.00019065,2]
[375037008,1753509038049,-447.03172408,0.00019068,2]
[375037013,1753509038090,-286.38834504,0.00019068,2]
[375037015,1753509038100,-733.42006912,0.00019072,2]
[375037017,1753509038109,-733.42006912,0.00019075,2]
[375037019,1753509038119,-783.0,0.00019076,2]
[375037021,1753509038128,-733.42006912,0.00019078,2]
[375037023,1753509038137,-215.0738,0.00019139,2]
[375037025,1753509038147,-300.0,0.00019139,2]
[375037027,1753509038156,-165.86,0.0001914,3]
[375037030,1753509038166,-497.59,0.0001914,3]
[375037033,1753509038175,-416.0,0.00019149,2]
[375037036,1753509038184,-343.92627526,0.00019149,2]
[375037039,1753509038192,-192.45561498,0.00019149,2]
[375037042,1753509038202,-619.87781625,0.00019149,2]
[375037045,1753509038211,-4446.13752224,0.0001915,2]
[375037048,1753509038220,-513448.73117872,0.0001915,2]
[375037051,1753509038229,-5465.89716836,0.00019166,2]
[375037054,1753509038238,-500.0,0.00019173,2]
[375037056,1753509038247,-504.30926765,0.00019173,2]
[375037058,1753509038255,-460.0,0.00019178,2]
[375037061,1753509038265,-460.0,0.00019178,2]
[375037064,1753509038275,-490.43335583,0.00019178,2]
[375037066,1753509038284,-335.43719213,0.00019178,2]
[375037067,1753509038294,-410.96854598,0.00019178,2]
[375037069,1753509038304,-460.0,0.00019178,2]
[375037071,1753509038313,-460.0,0.00019178,2]
[375037073,1753509038322,-460.0,0.00019178,2]
[375037075,1753509038331,-460.0,0.00019178,2]
[375037077,1753509038340,-460.0,0.00019178,2]
[375037080,1753509038350,-460.0,0.00019178,2]
[375037082,1753509038359,-460.0,0.00019178,2]
[375037084,1753509038368,-460.0,0.00019178,2]
[375037086,1753509038378,-460.0,0.00019178,2]
[375037088,1753509038387,-468.06874903,0.00019178,2]
[375037090,1753509038396,-460.0,0.00019178,2]
[375037092,1753509038405,-462.41505326,0.00019178,2]
[375037094,1753509038415,-460.0,0.00019178,2]
[375037096,1753509038424,-460.0,0.00019178,2]
[375037098,1753509038433,-162.81104477,0.00019178,2]
[375037100,1753509038442,-541.73092169,0.00019178,2]
[375037102,1753509038451,-460.0,0.00019178,2]
[375037104,1753509038460,-460.0,0.00019178,2]
[375037106,1753509038469,-460.0,0.00019178,2]
[375037108,1753509038478,-462.02150805,0.00019178,2]
[375037110,1753509038487,-464.04077207,0.00019178,2]
[375037112,1753509038496,-1002.82237932,0.00019178,2]
[375037114,1753509038505,-460.0,0.00019178,2]
[375037116,1753509038515,-460.0,0.00019178,2]
[375037118,1753509038524,-461.92834388,0.00019178,2]
[375037120,1753509038533,-151.02868772,0.00019178,2]
[375037122,1753509038543,-461.88280138,0.00019178,2]
[375037124,1753509038552,-460.0,0.00019178,2]
[375037126,1753509038562,-463.25758022,0.00019178,2]
[375037128,1753509038571,-461.12888578,0.00019178,2]
[375037130,1753509038579,-463.00551266,0.00019178,2]
[375037132,1753509038589,-461.49609007,0.00019178,2]
[375037134,1753509038598,-460.0,0.00019178,2]
[375037136,1753509038607,-462.95966224,0.00019178,2]
[375037138,1753509038616,-401.16939626,0.00019178,2]
[375037140,1753509038626,-460.0,0.00019178,2]
[375037142,1753509038635,-460.0,0.00019178,2]
[375037144,1753509038644,-463.32192899,0.00019178,2]
[375037146,1753509038653,-469.34242649,0.00019178,2]
[375037148,1753509038663,-461.41176516,0.00019178,2]
[375037150,1753509038672,-460.0,0.00019178,2]
[375037152,1753509038681,-500.0,0.00019178,2]
[375037154,1753509038690,-500.0,0.00019178,2]
[375037156,1753509038699,-500.0,0.00019178,2]
[375037158,1753509038708,-500.0,0.00019178,2]
[375037160,1753509038718,-500.0,0.00019178,2]
[375037162,1753509038727,-500.0,0.00019178,2]
[375037164,1753509038737,-460.0,0.00019178,2]
[375037166,1753509038746,-500.0,0.00019178,2]
[375037168,1753509038755,-460.0,0.00019178,2]
[375037170,1753509038764,-460.0,0.00019178,2]
[375037173,1753509038774,-460.0,0.00019178,2]
[375037175,1753509038783,-460.0,0.00019178,2]
[375037177,1753509038792,-460.0,0.00019178,2]
[375037178,1753509038802,-460.0,0.00019178,2]
[375037180,1753509038811,-460.0,0.00019178,2]
[375037182,1753509038821,-460.0,0.00019178,2]
[375037184,1753509038830,-460.0,0.00019178,2]
[375037186,1753509038839,-462.72333816,0.00019178,2]
[375037188,1753509038848,-461.48947464,0.00019178,2]
[375037190,1753509038858,-460.0,0.00019178,2]
[375037192,1753509038867,-460.89160589,0.00019178,2]
[375037194,1753509038876,-460.0,0.00019178,2]
[375037196,1753509038886,-460.0,0.00019178,2]
[375037198,1753509038895,-460.0,0.00019178,2]
[375037200,1753509038904,-460.0,0.00019178,2]
[375037202,1753509038914,-462.39622403,0.00019178,2]
[375037204,1753509038923,-460.0,0.00019178,2]
[375037206,1753509038932,-460.0,0.00019178,2]
[375037208,1753509038941,-460.0,0.00019178,2]
[375037210,1753509038950,-464.7302657,0.00019178,2]
[375037212,1753509038959,-460.0,0.00019178,2]
[375037214,1753509038968,-198.94609647,0.00019178,2]
[375037216,1753509038977,-460.0,0.00019178,2]
[375037218,1753509038987,-460.0,0.00019178,2]
[375037221,1753509038997,-460.0,0.00019178,2]
[375037223,1753509039006,-463.40792529,0.00019178,2]
[375037225,1753509039015,-460.0,0.00019178,2]
[375037226,1753509039024,-204.43599323,0.00019178,2]
[375037229,1753509039034,-460.0,0.00019178,2]
[375037231,1753509039043,-460.0,0.00019178,2]
[375037233,1753509039052,-460.0,0.00019178,2]
[375037235,1753509039066,-460.0,0.00019178,2]
[375037237,1753509039075,-461.46365992,0.00019178,2]
[375037239,1753509039084,-460.0,0.00019178,2]
[375037241,1753509039093,-461.96784085,0.00019178,2]
[375037242,1753509039103,-460.0,0.00019178,2]
[375037245,1753509039112,-460.0,0.00019178,2]
[375037247,1753509039121,-465.964678,0.00019178,2]
[375037248,1753509039131,-460.94297008,0.00019178,2]
[375037251,1753509039141,-460.0,0.00019178,2]
[375037253,1753509039151,-368.33342809,0.00019178,2]
[375037255,1753509039161,-460.0,0.00019178,2]
[375037257,1753509039170,-460.0,0.00019178,2]
[375037259,1753509039179,-462.49005568,0.00019178,2]
[375037261,1753509039188,-460.0,0.00019178,2]
[375037263,1753509039198,-460.0,0.00019178,2]
[375037264,1753509039207,-460.0,0.00019178,2]
[375037267,1753509039218,-460.0,0.00019178,2]
[375037269,1753509039227,-460.0,0.00019178,2]
[375037271,1753509039236,-460.0,0.00019178,2]
[375037273,1753509039245,-460.0,0.00019178,2]
[375037274,1753509039254,-460.0,0.00019178,2]
[375037277,1753509039264,-460.0,0.00019178,2]
[375037288,1753509039359,-460.0,0.00019178,2]
[375037290,1753509039368,-461.88577089,0.00019178,2]
[375037292,1753509039377,-275.59391628,0.00019178,2]
[375037294,1753509039387,-460.0,0.00019178,2]
[375037295,1753509039396,-460.0,0.00019178,2]
[375037297,1753509039406,-460.0,0.00019178,2]
[375037300,1753509039415,-460.0,0.00019178,2]
[375037301,1753509039424,-460.0,0.00019178,2]
[375037304,1753509039434,-460.0,0.00019178,2]
[375037307,1753509039443,-462.27690676,0.00019178,2]
[375037309,1753509039453,-460.0,0.00019178,2]
[375037312,1753509039462,-376.18709842,0.00019178,2]
[375037315,1753509039471,-460.0,0.00019178,2]
[375037318,1753509039481,-460.0,0.00019178,2]
[375037320,1753509039490,-460.0,0.00019178,2]
[375037321,1753509039499,-460.0,0.00019178,2]
[375037323,1753509039508,-462.3454776,0.00019178,2]
[375037325,1753509039519,-460.0,0.00019178,2]
[375037327,1753509039528,-463.26378184,0.00019178,2]
[375037329,1753509039537,-460.0,0.00019178,2]
[375037331,1753509039547,-460.0,0.00019178,2]
[375037333,1753509039556,-460.0,0.00019178,2]
[375037335,1753509039566,-460.0,0.00019178,2]
[375037336,1753509039576,-461.26444577,0.00019178,2]
[375037337,1753509039585,-460.0,0.00019178,2]
[375037338,1753509039595,-460.0,0.00019178,2]
[375037339,1753509039604,-460.0,0.00019178,2]
[375037340,1753509039613,-500.0,0.00019178,2]
[375037341,1753509039622,-462.87804913,0.00019178,2]
[375037342,1753509039632,-460.0,0.00019178,2]
[375037343,1753509039641,-460.0,0.00019178,2]
[375037344,1753509039650,-460.0,0.00019178,2]
[375037345,1753509039660,-460.0,0.00019178,2]
[375037346,1753509039669,-460.0,0.00019178,2]
[375037347,1753509039679,-460.0,0.00019178,2]
[375037348,1753509039689,-461.198791,0.00019178,2]
[375037349,1753509039699,-938.9,0.00019178,2]
[375037350,1753509039708,-460.0,0.00019178,2]
[375037351,1753509039717,-495.7328283,0.00019178,2]
[375037353,1753509039727,-460.0,0.00019178,2]
[375037354,1753509039736,-462.12385507,0.00019178,2]
[375037355,1753509039746,-460.0,0.00019178,2]
[375037356,1753509039755,-460.0,0.00019178,2]
[375037358,1753509039764,-460.0,0.00019178,2]
[375037360,1753509039773,-460.0,0.00019178,2]
[375037362,1753509039783,-460.0,0.00019178,2]
[375037364,1753509039792,-460.0,0.00019178,2]
[375037366,1753509039801,-460.0,0.00019178,2]
[375037368,1753509039811,-460.67835975,0.00019178,2]
[375037370,1753509039820,-460.0,0.00019178,2]
[375037372,1753509039830,-460.0,0.00019178,2]
[375037374,1753509039839,-768.06,0.00019178,2]
[375037376,1753509039849,-280.57643406,0.00019178,2]
[375037378,1753509039858,-460.0,0.00019178,2]
[375037380,1753509039868,-462.06158823,0.00019178,2]
[375037382,1753509039877,-460.0,0.00019178,2]
[375037384,1753509039887,-1029.31,0.00019178,2]
[375037386,1753509039896,-460.0,0.00019178,2]
[375037388,1753509039905,-460.0,0.00019178,2]
[375037390,1753509039914,-463.28158413,0.00019178,2]
[375037392,1753509039924,-460.0,0.00019178,2]
[375037394,1753509039933,-460.0,0.00019178,2]
[375037396,1753509039943,-460.0,0.00019178,2]
[375037398,1753509039952,-463.34284198,0.00019178,2]
[375037400,1753509039961,-460.0,0.00019178,2]
[375037402,1753509039970,-460.0,0.00019178,2]
[375037404,1753509039980,-461.62265586,0.00019178,2]
[375037406,1753509039989,-460.0,0.00019178,2]
[375037408,1753509039998,-460.0,0.00019178,2]
[375037410,1753509040008,-460.0,0.00019178,2]
[375037412,1753509040017,-460.0,0.00019178,2]
[375037414,1753509040026,-460.0,0.00019178,2]
[375037416,1753509040035,-464.84347162,0.00019178,2]
[375037417,1753509040045,-460.0,0.00019178,2]
[375037419,1753509040056,-460.0,0.00019178,2]
[375037422,1753509040066,-460.0,0.00019178,2]
[375037423,1753509040075,-460.0,0.00019178,2]
[375037425,1753509040084,-460.0,0.00019178,2]
[375037427,1753509040094,-687.55,0.00019178,2]
[375037429,1753509040103,-460.0,0.00019178,2]
[375037432,1753509040113,-460.0,0.00019178,2]
[375037433,1753509040123,-462.27660256,0.00019178,2]
[375037435,1753509040132,-1350.29,0.00019178,2]
[375037437,1753509040141,-461.38332845,0.00019178,2]
[375037440,1753509040151,-328.2014028,0.00019178,2]
[375037442,1753509040161,-460.0,0.00019178,2]
[375037444,1753509040170,-460.0,0.00019178,2]
[375037445,1753509040180,-460.0,0.00019178,2]
[375037447,1753509040189,-460.0,0.00019178,2]
[375037449,1753509040199,-460.0,0.00019178,2]
[375037451,1753509040209,-461.48849038,0.00019178,2]
[375037453,1753509040218,-466.28586178,0.00019178,2]
[375037455,1753509040228,-460.0,0.00019178,2]
[375037457,1753509040237,-460.0,0.00019178,2]
[375037459,1753509040247,-462.65152966,0.00019178,2]